bitfinex/quotes_SOLUSD_20250520
["timestamp","ask_amount","ask_price","bid_price","bid_amount"]
[1747726584612,5.96623113,167.61,167.53,50.61859426]
[1747726584817,12.45374274,167.6,167.53,44.64964886]
[1747726585022,5.96623113,167.61,167.53,44.64964886]
[1747726585325,18.41997387,167.61,167.53,44.64964886]
[1747726585631,33.33555169,167.61,167.53,44.64964886]
[1747726587409,20.88180895,167.61,167.53,44.64964886]
[1747726588230,27.36932056,167.61,167.53,44.64964886]
[1747726588433,12.45374274,167.59,167.53,44.64964886]
[1747726588735,14.91557782,167.61,167.53,50.61870024]
[1747726589110,14.91557782,167.61,167.53,44.64964886]
[1747726590230,33.33555169,167.61,167.53,44.64964886]
[1747726590400,20.88180895,167.61,167.53,44.64964886]
[1747726590607,12.45374274,167.57,167.53,44.64964886]
[1747726591207,12.45374274,167.58,167.53,44.64964886]
[1747726592034,12.45374274,167.59,167.53,44.64964886]
[1747726592211,18.42104194,167.58,167.53,44.64964886]
[1747726593311,12.45374274,167.57,167.53,44.64964886]
[1747726593822,33.33928994,167.58,167.53,44.64964886]
[1747726594134,20.8855472,167.58,167.53,44.64964886]
[1747726594335,30.11276014,167.63,167.53,44.64964886]
[1747726594336,5.96551929,167.63,167.57,18.64964886]
[1747726594508,12.45374274,167.62,167.57,18.64964886]
[1747726594834,12.45374274,167.61,167.56,18.64964886]
[1747726596131,12.45374274,167.61,167.52,18.64964886]
[1747726596351,5.96658711,167.6,167.52,18.64964886]
[1747726596825,33.33679763,167.6,167.52,18.64964886]
[1747726597024,12.45374274,167.59,167.52,18.64964886]
[1747726597353,12.45374274,167.58,167.52,18.64964886]
[1747726598144,12.45374274,167.57,167.52,18.64964886]
[1747726598320,5.96801145,167.56,167.52,18.64964886]
[1747726600751,5.96801145,167.56,167.49,18.64964886]
[1747726603161,30.11424501,167.62,167.49,18.64964886]
[1747726603162,5.9676553,167.57,167.49,24.62007332]
[1747726604148,5.9672992,167.58,167.49,24.62007332]
[1747726604649,18.42104194,167.58,167.49,24.62007332]
[1747726605554,18.42104194,167.58,167.49,18.64964886]
[1747726605555,33.33928994,167.58,167.49,18.64964886]
[1747726606530,12.45374274,167.57,167.49,18.64964886]
[1747726607340,20.8855472,167.58,167.49,18.64964886]
[1747726607538,33.33928994,167.58,167.49,18.64964886]
[1747726608255,20.8855472,167.58,167.49,24.62013592]
[1747726608562,5.9672992,167.58,167.49,24.62013592]
[1747726609052,5.9672992,167.58,167.5,0.28432314]
[1747726609262,5.9672992,167.58,167.52,18.64964886]
[1747726610355,33.33609811,167.61,167.52,24.6189934]
[1747726611334,14.91612424,167.61,167.52,24.6189934]
[1747726611635,27.36986698,167.61,167.52,24.6189934]
[1747726611865,27.36986698,167.61,167.52,18.64964886]
[1747726612250,14.91612424,167.61,167.52,18.64964886]
[1747726612451,27.36986698,167.61,167.52,18.64964886]
[1747726613070,27.36986698,167.61,167.59,3.43445385]
[1747726613372,18.42032985,167.6,167.59,3.43445385]
[1747726614274,33.33679763,167.6,167.53,18.64964886]
[1747726614439,12.45374274,167.59,167.53,18.64964886]
[1747726615149,12.45374274,167.57,167.52,8.58613464]
[1747726615344,12.45374274,167.56,167.52,8.58613464]
[1747726615550,12.45374274,167.56,167.52,18.64964886]
[1747726616262,12.45374274,167.56,167.48,26.0036]
[1747726616464,33.34302951,167.55,167.48,18.64964886]
[1747726616666,20.88928677,167.55,167.49,3.42355622]
[1747726617555,20.88928677,167.55,167.51,18.64964886]
[1747726618861,20.88928677,167.55,167.48,18.64964886]
[1747726620347,20.88928677,167.55,167.49,3.4228696]
[1747726621557,20.88928677,167.55,167.51,18.64964886]
[1747726622256,20.88928677,167.55,167.5,3.4228696]
[1747726622257,20.88928677,167.55,167.48,18.64964886]
[1747726623471,20.88928677,167.55,167.49,3.42326684]
[1747726623773,5.96836765,167.55,167.5,18.64964886]
[1747726624268,20.8860001,167.58,167.52,18.64964886]
[1747726625569,20.8860001,167.58,167.53,3.42326684]
[1747726626364,14.9187009,167.58,167.53,3.42326684]
[1747726626660,5.96658711,167.6,167.54,18.64964886]
[1747726626858,5.96658711,167.6,167.54,22.0729157]
[1747726627579,20.88305489,167.6,167.54,22.0729157]
[1747726628075,20.88305489,167.6,167.56,18.64964886]
[1747726628674,33.33679763,167.6,167.56,18.64964886]
[1747726628972,12.45374274,167.59,167.55,3.42326684]
[1747726629552,12.45374274,167.59,167.54,3.42326684]
[1747726630675,20.8855472,167.58,167.49,18.79181043]
[1747726631573,12.45374274,167.59,167.49,18.79181043]
[1747726631781,12.45374274,167.59,167.51,18.64964886]
[1747726632978,12.45374274,167.59,167.52,3.42629292]
[1747726633674,20.8855472,167.58,167.52,3.42629292]
[1747726634054,33.33928994,167.58,167.52,3.42629292]
[1747726634578,33.33928994,167.58,167.54,18.64964886]
[1747726634776,20.8855472,167.58,167.54,18.64964886]
[1747726634985,20.8855472,167.58,167.53,3.42629292]
[1747726634986,12.45374274,167.57,167.53,3.42629292]
[1747726635176,12.45374274,167.55,167.53,3.42629292]
[1747726635359,12.45374274,167.56,167.51,3.42629292]
[1747726635559,63.17578594,167.58,167.51,3.42629292]
[1747726636582,12.45374274,167.56,167.51,3.42629292]
[1747726636778,12.45374274,167.56,167.52,3.42629292]
[1747726637662,12.45374274,167.56,167.51,3.42629292]
[1747726638282,12.45374274,167.55,167.51,3.42629292]
[1747726638484,20.88804009,167.56,167.51,3.42629292]
[1747726638788,33.34178283,167.56,167.51,3.42629292]
[1747726639184,26.0,167.53,167.51,3.42629292]
[1747726639390,25.19180862,167.52,167.51,3.42629292]
[1747726639689,18.48314274,167.52,167.44,3.42629292]
[1747726639988,12.45374274,167.51,167.45,18.64964886]
[1747726640187,18.48314274,167.52,167.45,18.64964886]
[1747726640384,5.96979284,167.51,167.45,18.64964886]
[1747726640581,20.89427496,167.51,167.44,3.42629292]
[1747726640776,20.89427496,167.51,167.45,18.64964886]
[1747726641586,20.89427496,167.51,167.45,22.07594178]
[1747726641787,5.96979284,167.51,167.47,18.64964886]
[1747726642464,12.45374274,167.53,167.49,18.64964886]
[1747726643385,14.92228155,167.54,167.48,3.42629292]
[1747726643386,12.45374274,167.5,167.48,3.42629292]
[1747726643596,14.92228155,167.54,167.48,3.42629292]
[1747726643597,12.45374274,167.49,167.48,3.42629292]
[1747726643769,12.45374274,167.49,167.43,18.64964886]
[1747726643966,12.45374274,167.47,167.43,18.64964886]
[1747726644172,12.45374274,167.46,167.39,18.64964886]
[1747726644471,5.97193191,167.45,167.39,18.64964886]
[1747726644803,5.97193191,167.45,167.41,18.64964886]
[1747726645702,5.9715753,167.46,167.41,18.64964886]
[1747726646404,5.9715753,167.46,167.39,18.64964886]
[1747726646691,12.45374274,167.45,167.38,18.64964886]
[1747726647269,20.90051355,167.46,167.38,18.64964886]
[1747726647474,33.35425629,167.46,167.38,18.64964886]
[1747726648284,12.45374274,167.45,167.39,3.41467747]
[1747726649364,12.45374274,167.45,167.38,18.64964886]
[1747726649878,14.92893825,167.46,167.38,18.64964886]
[1747726650298,12.45374274,167.45,167.38,18.64964886]
[1747726650895,12.45374274,167.43,167.38,18.64964886]
[1747726651207,1.5248,167.43,167.34,18.64964886]
[1747726651873,14.92893825,167.46,167.34,18.64964886]
[1747726652201,12.45374274,167.43,167.34,18.64964886]
[1747726652693,12.45374274,167.44,167.34,18.64964886]
[1747726653081,20.90051355,167.46,167.34,24.62536333]
[1747726653280,12.45374274,167.44,167.34,18.64964886]
[1747726653483,12.45374274,167.44,167.34,36.54964886]
[1747726653683,20.90051355,167.46,167.35,0.28432314]
[1747726653989,12.45374274,167.45,167.36,18.64964886]
[1747726654184,12.45374274,167.43,167.36,18.64964886]
[1747726654770,12.45374274,167.42,167.36,18.64964886]
[1747726655094,5.97335881,167.41,167.36,18.64964886]
[1747726655480,20.90675585,167.41,167.34,18.64964886]
[1747726656394,33.36049859,167.41,167.34,18.64964886]
[1747726659376,20.90675585,167.41,167.34,18.64964886]
[1747726660592,12.45374274,167.41,167.34,18.64964886]
[1747726660972,12.45374274,167.39,167.34,18.64964886]
[1747726661393,63.21819567,167.44,167.34,18.64964886]
[1747726661699,20.90301003,167.44,167.34,18.64964886]
[1747726662071,33.35675277,167.44,167.34,24.62545205]
[1747726662599,33.35675277,167.44,167.34,18.64964886]
[1747726663583,20.90301003,167.44,167.34,24.62536243]
[1747726663896,33.35675277,167.44,167.34,24.62536243]
[1747726664094,5.97228858,167.44,167.36,18.64964886]
[1747726664802,20.90051355,167.46,167.36,24.62472876]
[1747726665580,20.90051355,167.46,167.38,18.64964886]
[1747726669008,20.90051355,167.46,167.4,18.64964886]
[1747726670009,14.92893825,167.46,167.4,18.64964886]
[1747726672804,5.97121872,167.47,167.4,18.64964886]
[1747726673001,5.97121872,167.47,167.41,0.28432314]
[1747726673304,14.9267344,167.49,167.42,18.64964886]
[1747726673510,5.96979284,167.51,167.42,24.90384886]
[1747726674194,20.89427496,167.51,167.42,24.90384886]
[1747726674984,20.89427496,167.51,167.43,0.28432314]
[1747726675331,14.92448212,167.51,167.43,0.28432314]
[1747726675807,14.92448212,167.51,167.44,18.64964886]
[1747726677906,14.92448212,167.51,167.46,18.64964886]
[1747726680109,14.92448212,167.51,167.44,17.9]
[1747726681516,14.92448212,167.51,167.46,18.64964886]
[1747726683095,14.92448212,167.51,167.45,3.41103583]
[1747726683096,14.92448212,167.51,167.45,18.64964886]
[1747726684422,27.37822486,167.51,167.42,6.2542]
[1747726684601,27.37822486,167.51,167.44,17.9]
[1747726685386,33.3480177,167.51,167.44,17.9]
[1747726685585,33.3480177,167.51,167.43,18.64964886]
[1747726686397,33.3480177,167.51,167.44,3.41364178]
[1747726686727,12.45374274,167.49,167.44,3.41364178]
[1747726687017,12.45374274,167.48,167.44,3.41364178]
[1747726687614,12.45374274,167.48,167.41,18.64964886]
[1747726688195,12.45374274,167.47,167.41,18.64964886]
[1747726688401,12.45374274,167.49,167.41,18.64964886]
[1747726688903,33.35176041,167.48,167.42,3.41478832]
[1747726689091,33.35176041,167.48,167.43,18.64964886]
[1747726690115,33.35176041,167.48,167.41,18.64964886]
[1747726691405,20.89801767,167.48,167.41,18.64964886]
[1747726691593,33.35176041,167.48,167.41,18.64964886]
[1747726692130,12.45374274,167.46,167.4,18.64964886]
[1747726693211,20.9017617,167.45,167.4,18.64964886]
[1747726693417,33.35550444,167.45,167.37,18.64964886]
[1747726694308,33.35550444,167.45,167.35,18.64964886]
[1747726694508,20.9017617,167.45,167.39,18.64964886]
[1747726695516,20.9017617,167.45,167.37,18.64964886]
[1747726696618,33.35550444,167.45,167.37,18.64964886]
[1747726697303,12.45374274,167.44,167.37,18.64964886]
[1747726697728,33.35550444,167.45,167.37,18.64964886]
[1747726698024,20.9017617,167.45,167.37,18.64964886]
[1747726698320,33.35550444,167.45,167.39,18.64964886]
[1747726698632,12.45374274,167.44,167.39,18.64964886]
[1747726698812,20.9017617,167.45,167.39,18.64964886]
[1747726699230,20.9017617,167.45,167.37,18.64964886]
[1747726700626,20.9017617,167.45,167.37,17.9]
[1747726700828,33.35550444,167.45,167.37,17.9]
[1747726701003,20.9017617,167.45,167.37,17.9]
[1747726701530,5.97193191,167.45,167.37,17.9]
[1747726701730,5.97121872,167.47,167.39,18.64964886]
[1747726702029,5.97121872,167.47,167.39,23.34477423]
[1747726703034,5.97121872,167.47,167.41,18.64964886]
[1747726703608,33.35300827,167.47,167.41,18.64964886]
[1747726703929,12.45374274,167.46,167.4,3.41658764]
[1747726704838,20.89926553,167.47,167.41,18.64964886]
[1747726705339,5.97121872,167.47,167.41,18.64964886]
[1747726706335,20.89801767,167.48,167.43,18.64964886]
[1747726706629,33.35176041,167.48,167.43,18.64964886]
[1747726707822,33.35176041,167.48,167.38,24.62399328]
[1747726709132,33.35176041,167.48,167.4,18.64964886]
[1747726710538,33.35176041,167.48,167.41,3.421756]
[1747726710735,20.89801767,167.48,167.42,18.64964886]
[1747726711734,20.89801767,167.48,167.44,18.64964886]
[1747726712740,14.92715548,167.48,167.41,18.64964886]
[1747726713938,14.92715548,167.48,167.42,3.42211773]
[1747726715240,27.38089822,167.48,167.43,3.42211773]
[1747726715435,14.92715548,167.48,167.43,3.42211773]
[1747726715934,27.38089822,167.48,167.43,3.42211773]
[1747726716141,12.45374274,167.46,167.43,3.42211773]
[1747726716315,12.45374274,167.45,167.43,3.42211773]
[1747726716708,12.45374274,167.45,167.42,3.42211773]
[1747726717333,5.97228858,167.44,167.42,3.42211773]
[1747726717521,12.45374274,167.43,167.42,3.42211773]
[1747726717727,12.45374274,167.43,167.36,22.07176659]
[1747726718038,12.45374274,167.42,167.36,22.07176659]
[1747726719242,12.45374274,167.42,167.37,3.42211773]
[1747726719445,12.45374274,167.4,167.37,3.42211773]
[1747726721127,5.97407252,167.39,167.36,3.42211773]
[1747726723029,5.97407252,167.39,167.33,26.0]
[1747726723233,20.90800477,167.4,167.33,26.0]
[1747726724443,20.90800477,167.4,167.34,3.41979018]
[1747726724839,33.36174751,167.4,167.34,3.41979018]
[1747726725343,12.45374274,167.39,167.33,26.0]
[1747726726042,12.45374274,167.38,167.32,18.64964886]
[1747726726421,12.45374274,167.38,167.31,27.6343]
[1747726726743,12.45374274,167.38,167.32,3.41987698]
[1747726727454,5.9747864,167.37,167.34,26.0]
[1747726728137,5.9747864,167.37,167.32,48.06952584]
[1747726728331,5.9747864,167.37,167.33,3.41987698]
[1747726729339,20.90925383,167.39,167.34,3.41987698]
[1747726730139,5.97407252,167.39,167.34,3.41987698]
[1747726730343,5.97407252,167.39,167.35,18.64964886]
[1747726730722,5.97335881,167.41,167.35,44.64964886]
[1747726730914,5.97335881,167.41,167.35,48.06952584]
[1747726731436,14.93294995,167.42,167.35,48.06952584]
[1747726732143,14.93294995,167.42,167.37,18.64964886]
[1747726732534,14.93294995,167.42,167.36,3.41987698]
[1747726732740,27.38669269,167.42,167.36,3.41987698]
[1747726733341,33.35969472,167.42,167.36,3.41987698]
[1747726733547,33.35969472,167.42,167.35,26.0]
[1747726736653,33.35969472,167.42,167.36,3.42026156]
[1747726737438,20.90595198,167.42,167.36,3.42026156]
[1747726737641,20.90595198,167.42,167.36,18.64964886]
[1747726738247,5.97300203,167.42,167.36,18.64964886]
[1747726739038,5.97300203,167.42,167.37,3.41996293]
[1747726739858,14.93250507,167.42,167.37,3.41996293]
[1747726740545,5.97264528,167.43,167.37,3.41996293]
[1747726741060,20.90425849,167.43,167.36,18.64964886]
[1747726741848,14.93161321,167.43,167.36,18.64964886]
[1747726742253,5.97228858,167.44,167.38,18.64964886]
[1747726742967,20.90301003,167.44,167.38,18.64964886]
[1747726743134,33.35675277,167.44,167.33,1.5098]
[1747726743335,33.35675277,167.44,167.34,36.56964886]
[1747726744241,20.9055071,167.42,167.35,3.42001975]
[1747726745157,33.35924984,167.42,167.35,3.42001975]
[1747726745367,12.45374274,167.41,167.35,3.42001975]
[1747726746048,20.9055071,167.42,167.34,18.64964886]
[1747726746261,12.45374274,167.41,167.34,18.64964886]
[1747726747164,20.90800477,167.4,167.34,18.64964886]
[1747726747340,33.36174751,167.4,167.33,1.5098]
[1747726747540,12.45374274,167.39,167.33,1.5098]
[1747726747852,12.45374274,167.37,167.3,18.64964886]
[1747726748156,20.90800477,167.4,167.3,18.64964886]
[1747726748375,33.36174751,167.4,167.3,18.64964886]
[1747726748749,20.90800477,167.4,167.31,0.28432314]
[1747726749465,14.93428912,167.4,167.33,18.64964886]
[1747726750772,14.93428912,167.4,167.35,18.64964886]
[1747726752167,27.38803186,167.4,167.32,18.64964886]
[1747726752358,14.93428912,167.4,167.32,18.64964886]
[1747726752855,20.90800477,167.4,167.32,18.64964886]
[1747726754064,20.90800477,167.4,167.33,3.42070286]
[1747726754955,27.38803186,167.4,167.33,3.42070286]
[1747726755151,12.45374274,167.39,167.33,3.42070286]
[1747726755357,12.45374274,167.39,167.34,3.42070286]
[1747726755556,12.45374274,167.37,167.34,3.42070286]
[1747726756376,12.45374274,167.37,167.31,3.42070286]
[1747726756670,6.6181,167.39,167.31,3.42070286]
[1747726756964,20.9130019,167.36,167.31,3.42070286]
[1747726757155,33.36674464,167.36,167.31,3.42070286]
[1747726757356,20.9130019,167.36,167.31,3.42070286]
[1747726757666,33.36674464,167.36,167.31,3.42070286]
[1747726758185,33.36674464,167.36,167.3,3.42070286]
[1747726759665,12.45374274,167.35,167.3,3.42070286]
[1747726760572,20.9130019,167.36,167.3,3.42070286]
[1747726760782,5.9751434,167.36,167.28,24.62764981]
[1747726761148,20.9130019,167.36,167.28,18.64964886]
[1747726761448,20.9130019,167.36,167.28,36.56964886]
[1747726761678,20.9130019,167.36,167.28,18.64964886]
[1747726761852,12.45374274,167.35,167.28,18.64964886]
[1747726762247,12.45374274,167.35,167.29,3.42070286]
[1747726762450,20.9130019,167.36,167.3,18.64964886]
[1747726763770,12.45374274,167.35,167.29,3.42070286]
[1747726763958,20.91550136,167.34,167.31,3.42070286]
[1747726764352,5.97585753,167.34,167.31,3.42070286]
[1747726764971,5.97585753,167.34,167.29,18.64964886]
[1747726765366,5.97585753,167.34,167.28,3.42070286]
[1747726765672,5.97585753,167.34,167.29,18.64964886]
[1747726765873,20.91237331,167.37,167.29,18.64964886]
[1747726766059,20.91237331,167.37,167.31,18.64964886]
[1747726767978,14.93758691,167.37,167.31,18.64964886]
[1747726768155,14.93758691,167.37,167.29,5.97761784]
[1747726768567,5.97442944,167.38,167.29,5.97761784]
[1747726768855,5.97442944,167.38,167.31,18.64964886]
[1747726769274,20.91050304,167.38,167.31,18.64964886]
[1747726770454,45.74,167.42,167.31,18.64964886]
[1747726770455,21.19107899,167.41,167.31,18.64964886]
[1747726770681,12.45374274,167.39,167.32,3.4234669]
[1747726771468,5.97442944,167.38,167.32,3.4234669]
[1747726771972,5.97442944,167.38,167.31,18.64964886]
[1747726773474,14.93564457,167.39,167.31,18.64964886]
[1747726774186,14.93564457,167.39,167.32,3.42292706]
[1747726775487,20.90971709,167.39,167.34,18.64964886]
[1747726777085,20.90971709,167.39,167.31,18.64964886]
[1747726777793,20.90971709,167.39,167.32,3.42341038]
[1747726777981,20.9055071,167.42,167.32,3.42341038]
[1747726778184,12.45374274,167.4,167.32,3.42341038]
[1747726778583,12.45374274,167.39,167.32,3.42341038]
[1747726778885,12.45374274,167.38,167.31,18.64964886]
[1747726779274,12.45374274,167.39,167.31,18.64964886]
[1747726779470,12.45374274,167.38,167.31,18.64964886]
[1747726779971,20.9117524,167.37,167.3,1.594]
[1747726780195,20.9117524,167.37,167.26,25.71867241]
[1747726780196,12.45374274,167.34,167.26,1.5244]
[1747726780385,20.9117524,167.37,167.31,3.42402234]
[1747726780590,12.45374274,167.36,167.31,3.42402234]
[1747726781786,12.45374274,167.36,167.27,18.64964886]
[1747726781978,20.91425156,167.35,167.27,18.64964886]
[1747726782171,33.3679943,167.35,167.27,18.64964886]
[1747726783393,33.3679943,167.35,167.28,3.42371103]
[1747726784993,12.45374274,167.34,167.26,1.5244]
[1747726785490,50.7917538,167.35,167.26,1.5244]
[1747726785694,12.45374274,167.34,167.26,1.5244]
[1747726786095,20.91675132,167.33,167.26,1.5244]
[1747726786479,20.91675132,167.33,167.27,3.42437089]
[1747726787699,20.91675132,167.33,167.28,3.42437089]
[1747726788389,14.94053666,167.33,167.28,3.42437089]
[1747726788590,14.94053666,167.33,167.27,3.42437089]
[1747726788784,14.94053666,167.33,167.27,22.07401975]
[1747726789098,14.94053666,167.33,167.28,18.64964886]
[1747726789895,14.94053666,167.33,167.29,3.42437089]
[1747726792615,5.97550044,167.35,167.3,18.64964886]
[1747726793903,20.91360735,167.36,167.3,18.64964886]
[1747726794416,33.36735009,167.36,167.31,3.42437089]
[1747726795615,5.9751434,167.36,167.32,18.64964886]
[1747726796228,20.909675,167.39,167.3,18.64964886]
[1747726796521,33.36341774,167.39,167.3,18.64964886]
[1747726796998,20.909675,167.39,167.32,18.64964886]
[1747726798197,12.45374274,167.41,167.33,1.6081]
[1747726798400,12.45374274,167.41,167.34,18.64964886]
[1747726798603,12.45374274,167.4,167.34,18.64964886]
[1747726799415,12.45374274,167.4,167.33,1.6081]
[1747726801298,5.97407252,167.39,167.34,36.56964886]
[1747726801713,5.97407252,167.39,167.35,3.42750895]
[1747726801910,14.93288635,167.42,167.35,3.42750895]
[1747726802820,14.93288635,167.42,167.37,18.64964886]
[1747726803027,14.93288635,167.42,167.37,18.14964886]
[1747726803528,5.97228858,167.44,167.37,18.14964886]
[1747726804113,14.93017952,167.45,167.38,3.42750895]
[1747726805101,14.93017952,167.45,167.39,18.64964886]
[1747726805302,14.93017952,167.45,167.39,22.07715781]
[1747726805914,5.97121872,167.47,167.39,28.34947862]
[1747726806313,5.97121872,167.47,167.4,0.28432314]
[1747726806535,5.97121872,167.47,167.42,18.64964886]
[1747726806917,5.97014925,167.5,167.43,0.28432314]
[1747726807322,14.92501918,167.51,167.43,0.28432314]
[1747726809357,14.92501918,167.51,167.44,18.64964886]
[1747726810169,14.92501918,167.51,167.43,18.933972]
[1747726810640,14.92501918,167.51,167.44,18.64964886]
[1747726811442,20.89481202,167.51,167.43,18.933972]
[1747726812553,20.89481202,167.51,167.43,0.28432314]
[1747726812856,20.89481202,167.51,167.43,18.933972]
[1747726813161,33.34855476,167.51,167.42,17.92]
[1747726813358,12.45374274,167.5,167.43,18.64964886]
[1747726813545,20.89481202,167.51,167.42,18.933972]
[1747726814633,14.92501918,167.51,167.42,18.933972]
[1747726814862,14.92501918,167.51,167.42,24.90677318]
[1747726815153,5.96943648,167.52,167.42,24.90677318]
[1747726816639,20.89302769,167.52,167.42,24.90677318]
[1747726817534,20.89302769,167.52,167.42,18.933972]
[1747726817857,20.89302769,167.52,167.42,24.90674419]
[1747726818548,14.92359121,167.52,167.42,18.79181043]
[1747726818854,27.37733395,167.52,167.43,0.14216157]
[1747726819563,14.92359121,167.52,167.43,0.14216157]
[1747726820758,20.89302769,167.52,167.43,0.14216157]
[1747726826065,20.89302769,167.52,167.45,0.28432314]
[1747726826858,14.92359121,167.52,167.45,0.28432314]
[1747726827861,5.96908016,167.53,167.47,0.28432314]
[1747726829065,12.45374274,167.54,167.46,18.64964886]
[1747726830278,12.45374274,167.53,167.46,18.64964886]
[1747726830590,12.45374274,167.52,167.46,18.64964886]
[1747726830951,20.89427496,167.51,167.46,18.64964886]
[1747726831175,33.3480177,167.51,167.43,18.933972]
[1747726831474,33.3480177,167.51,167.43,18.64964886]
[1747726832550,12.45374274,167.46,167.42,18.64964886]
[1747726832974,12.45374274,167.47,167.42,18.64964886]
[1747726833277,20.90051355,167.46,167.39,18.64964886]
[1747726836363,12.45374274,167.47,167.39,18.64964886]
[1747726836966,12.45374274,167.47,167.38,18.64964886]
[1747726837265,12.45374274,167.47,167.39,0.28432314]
[1747726838361,20.90051355,167.46,167.39,0.28432314]
[1747726839975,5.97086219,167.48,167.39,6.25828365]
[1747726840152,5.97086219,167.48,167.41,20.527172]
[1747726840338,5.97086219,167.48,167.44,0.28432314]
[1747726840544,14.92401379,167.52,167.46,0.28432314]
[1747726841666,20.88928677,167.55,167.46,0.28432314]
[1747726842244,33.34302951,167.55,167.46,0.28432314]
[1747726842445,12.45374274,167.54,167.45,36.54964886]
[1747726842868,50.73112502,167.55,167.45,36.54964886]
[1747726843072,63.18486776,167.55,167.45,36.54964886]
[1747726843547,33.34302951,167.55,167.46,0.28432314]
[1747726845286,33.34302951,167.55,167.48,18.64964886]
[1747726845870,33.34302951,167.55,167.46,0.28432314]
[1747726847350,33.34302951,167.55,167.46,18.933972]
[1747726848463,33.34302951,167.55,167.47,3.42049233]
[1747726849379,12.45374274,167.54,167.47,3.42049233]
[1747726850464,12.45374274,167.54,167.48,3.42049233]
[1747726851173,20.89178057,167.53,167.48,3.42049233]
[1747726851474,20.89178057,167.53,167.47,3.42049233]
[1747726856285,14.92270041,167.53,167.47,3.42049233]
[1747726859080,14.92270041,167.53,167.48,18.64964886]
[1747726860259,14.92270041,167.53,167.49,3.42049233]
[1747726862782,5.96872388,167.54,167.5,18.64964886]
[1747726863871,5.96836765,167.55,167.48,18.64964886]
[1747726864575,5.96836765,167.55,167.49,3.42072551]
[1747726865889,20.88928677,167.55,167.49,3.42072551]
[1747726866082,33.34302951,167.55,167.49,3.42072551]
[1747726866289,12.45374274,167.53,167.46,18.64964886]
[1747726867374,5.96943648,167.52,167.45,0.14216157]
[1747726867565,5.96943648,167.52,167.47,3.42049939]
[1747726868988,5.96943648,167.52,167.48,3.42049939]
[1747726869880,5.96943648,167.52,167.49,18.64964886]
[1747726870470,5.96943648,167.52,167.51,18.64964886]
[1747726871062,20.88872394,167.56,167.51,18.64964886]
[1747726871786,5.96801145,167.56,167.5,0.14216157]
[1747726872382,5.96658711,167.6,167.5,0.14216157]
[1747726872588,18.42032985,167.6,167.5,0.14216157]
[1747726873097,18.42032985,167.6,167.51,18.79181043]
[1747726873591,18.42032985,167.6,167.52,3.41854567]
[1747726873971,33.33679763,167.6,167.52,3.41854567]
[1747726874174,12.45374274,167.59,167.52,3.41854567]
[1747726874371,12.45374274,167.58,167.53,18.64964886]
[1747726874689,12.45374274,167.58,167.53,22.06819453]
[1747726875295,12.45374274,167.59,167.53,22.06819453]
[1747726875795,5.9672992,167.58,167.5,18.933972]
[1747726876183,20.8855472,167.58,167.5,18.933972]
[1747726876894,20.8855472,167.58,167.51,3.41634359]
[1747726878183,20.8855472,167.58,167.53,18.64964886]
[1747726878390,33.33928994,167.58,167.53,18.64964886]
[1747726879093,33.33928994,167.58,167.5,18.933972]
[1747726880295,20.8855472,167.58,167.5,18.933972]
[1747726880797,20.8855472,167.58,167.51,3.41724617]
[1747726881094,5.9672992,167.58,167.52,18.64964886]
[1747726882394,27.37199074,167.58,167.53,3.41724617]
[1747726883373,12.45374274,167.55,167.53,3.41724617]
[1747726883884,12.45374274,167.54,167.53,3.41724617]
[1747726884384,18.42246662,167.54,167.53,3.41724617]
[1747726884585,33.34427633,167.54,167.49,18.64964886]
[1747726884769,20.89053359,167.54,167.49,18.64964886]
[1747726885199,33.34427633,167.54,167.49,18.64964886]
[1747726885687,33.34427633,167.54,167.5,3.41724617]
[1747726886895,12.45374274,167.56,167.51,18.64964886]
[1747726887104,12.45374274,167.57,167.51,18.64964886]
[1747726887598,5.9672992,167.58,167.51,18.64964886]
[1747726888396,5.9672992,167.58,167.53,18.64964886]
[1747726888780,20.88305489,167.6,167.53,18.64964886]
[1747726888981,12.45374274,167.59,167.53,18.64964886]
[1747726889295,20.88305489,167.6,167.53,18.64964886]
[1747726889503,12.45374274,167.59,167.53,18.64964886]
[1747726889805,12.45374274,167.59,167.52,18.64964886]
[1747726891106,5.9672992,167.58,167.53,3.42320354]
[1747726892174,5.9672992,167.58,167.55,18.64964886]
[1747726893814,5.9672992,167.58,167.51,18.933972]
[1747726894106,12.45374274,167.58,167.51,18.933972]
[1747726894898,12.45374274,167.56,167.51,18.64964886]
[1747726895212,12.45374274,167.56,167.52,3.422206]
[1747726895393,12.45374274,167.54,167.52,3.422206]
[1747726895714,12.45374274,167.53,167.52,3.422206]
[1747726896216,18.4228229,167.53,167.52,3.422206]
[1747726897118,33.34552331,167.53,167.46,8.54977247]
[1747726897326,12.45374274,167.5,167.46,8.54977247]
[1747726897894,12.45374274,167.49,167.46,8.54977247]
[1747726898288,5.97086219,167.48,167.47,3.42367209]
[1747726900250,5.97014925,167.5,167.47,3.42367209]
[1747726900439,14.92505427,167.51,167.47,3.42367209]
[1747726900713,20.89484711,167.51,167.47,3.42367209]
[1747726901020,33.34858985,167.51,167.47,3.42367209]
[1747726901487,33.34858985,167.51,167.48,3.42367209]
[1747726902723,33.34858985,167.51,167.45,18.64964886]